[Event "44th Chess Olympiad Open 2022"]
[Site "Chennai"]
[Date "2022.07.30"]
[Round "2.35"]
[White "Kobayashi, Atsuhiko"]
[Black "Kazakouski, Valery"]
[Result "1-0"]
[WhiteElo "2156"]
[BlackElo "2528"]
[Annotator "TA"]
[PlyCount "117"]
[EventDate "2022.??.??"]
[TimeControl "60"]

{[%evp 9,117,21,14,14,10,19,14,13,25,22,22,23,19,27,22,23,28,10,34,49,52,13,34,
0,66,26,24,6,54,51,50,0,0,0,0,-13,8,8,4,0,12,22,27,26,50,52,48,37,41,0,0,0,0,0,
0,0,45,0,0,0,0,-164,-307,-389,-225,-216,-217,-199,-16,-114,-111,-113,0,0,0,0,0,
0,0,0,0,-10,-11,-14,0,0,0,-11,0,0,0,0,0,0,0,-22,29975,29976,29976,29977,29977,
29978,29978,29979,29979,29980,29979,29979,5226,5214]} 1. Nf3 {[%emt 0:00:12]}
d5 {[%emt 0:00:34]} 2. e3 {[%emt 0:00:07]} Nf6 {[%emt 0:00:58]} 3. c4 {[%emt 0:
00:00]} e6 {[%emt 0:00:21]} 4. Nc3 {[%emt 0:00:09]} a6 {[%emt 0:01:30]} 5. b3 {
[%emt 0:00:14]} b6 {[%emt 0:00:08]} 6. cxd5 {[%emt 0:00:07] A17: English
Opening: 1...Nf6 with ...Bb4.} exd5 {[%emt 0:00:06]} 7. g3 {[%emt 0:00:13]} Bb7
{[%emt 0:01:19][%cal Yd5d4]} 8. Bg2 {[%emt 0:00:09] The position is equal.} Bd6
{[%emt 0:00:28]} 9. Bb2 {[%emt 0:00:13]} Nbd7 {[%emt 0:01:01]} 10. O-O {
[%emt 0:00:31]} O-O {[%emt 0:00:14]} 11. Rc1 {[%emt 0:00:43]} Re8 {[%emt 0:00:
00]} 12. Re1 {[%emt 0:00:46]} Rc8 {[%emt 0:03:14] [#]} 13. d3 $146 {[%emt 0:00:
00][%cal Yd2d3,Yd3d4]} ({Predecessor:} 13. Re2 b5 14. a4 b4 15. Nb1 c5 16. d3
a5 17. Rec2 Nb6 18. Nbd2 Ba6 19. Bf1 {½-½ (54) Korpa,B (2520) -Prohaszka,P 
(2568) Budapest 2021}) 13... c5 {[%emt 0:06:53]} 14. d4 {[%emt 0:00:00]} Qe7 {
[%emt 0:14:47]} 15. Nh4 {[%emt 0:08:50]} Qe6 {[%emt 0:04:38]} 16. Ne2 {[%emt 0:
05:13]} Ba8 {[%emt 0:12:12]} (16... g5 $11 17. Nf3 Qf5) 17. dxc5 {[%emt 0:18:
48]} bxc5 {[%emt 0:00:35]} 18. Qd3 {[%emt 0:00:55]} Ne5 {[%emt 0:00:00]} (18...
Be5 $11 {was preferrable.} 19. Ba3 (19. Nf4 Qb6 $15) 19... Qb6) 19. Qb1 $14 {
[%emt 0:07:26]} (19. Qxa6 Rc6 20. Qa5 (20. Qb5 Rb8 $17) 20... Nd3 $17) 19...
Ned7 $1 {[%emt 0:06:38]} 20. Qd3 {[%emt 0:01:31]} (20. b4 $14) 20... Be5 {
[%emt 0:00:08]} 21. Qb1 {[%emt 0:04:29]} Bxb2 {[%emt 0:03:28]} 22. Qxb2 {
[%emt 0:00:06]} g5 {[%emt 0:03:16]} 23. Nf3 {[%emt 0:01:36]} h6 {[%emt 0:01:45]
} 24. Rc2 {[%emt 0:05:28]} Qf5 {[%emt 0:03:05][%cal Yd5d4]} 25. Rec1 {[%emt 0:
00:00]} Rb8 {[%emt 0:01:05][%cal Yd5d4]} 26. h3 {[%emt 0:07:04]} Rb6 {[%emt 0:
00:00]} 27. g4 {[%emt 0:01:33]} Qg6 {[%emt 0:00:18]} 28. Ng3 {[%emt 0:01:50]}
h5 {[%emt 0:01:27]} 29. gxh5 {[%emt 0:06:42]} Nxh5 {[%emt 0:00:09]} 30. Nxh5 {
[%emt 0:00:39]} Qxh5 {[%emt 0:00:08]} 31. Nh2 $1 {[%emt 0:03:03]} Rd6 {[%emt 0:
00:00]} 32. Rd2 {[%emt 0:03:23] Inhibits d4.} f5 {[%emt 0:04:26]} (32... g4 $5
33. hxg4 (33. Nxg4 f5 $17) 33... Qh4 $15) 33. Qc2 {[%emt 0:04:27]} (33. b4 $5 {
[%cal Rb4c5]} Ne5 34. bxc5 $14) 33... g4 {[%emt 0:03:20]} 34. hxg4 {[%emt 0:00:
00]} fxg4 {[%emt 0:00:02] White must now prevent ...Rh6.} 35. Qd1 $2 {[%emt 0:
00:00]} (35. f3 $11) 35... Ne5 $19 {[%emt 0:01:27]} 36. Rc4 {[%emt 0:03:25]
[%cal Rh2g4]} ({Wrong is} 36. Bxd5+ $2 Bxd5 37. Rxd5 Rh6 38. Qxg4+ Rg6 $19)
36... Nxc4 {[%emt 0:01:06]} ({Stronger than} 36... dxc4 37. Rxd6 Bf3 38. Qd2
$17) (36... Rg6 $142 37. Rxd5 (37. Bxd5+ $2 Bxd5 38. Rxd5 Nf3+ 39. Kf1 Qxh2 $19
) 37... Bxd5 38. Qxd5+ Kh8 39. Rxc5 g3 40. fxg3 Rxg3) 37. bxc4 {[%emt 0:00:05]}
d4 {[%emt 0:00:53] Threatens to win with ...Bxg2.} 38. Nxg4 {[%emt 0:01:27]
[%cal Yg4f6] Hoping for Nf6+!} Qh8 {[%emt 0:00:52] Inhibits Nf6+.} (38... Qh4
$19 {And now ...Bxg2 would win.} 39. Bxa8 Rxa8) 39. Bxa8 {[%emt 0:01:24]} (39.
f4 $1 $11) 39... Rxa8 $17 {[%emt 0:00:12]} 40. exd4 {[%emt 0:00:56] [#]} Rxd4 {
[%emt 0:00:31]} (40... Qh4 $1 $17 41. Qf3 Rf8) 41. Rxd4 $11 {[%emt 0:10:58]}
cxd4 {[%emt 0:10:15] Endgame KQR-KQN} 42. Qf3 {[%emt 0:02:06]} Rd8 {[%emt 0:01:
11]} 43. Nf6+ {[%emt 0:02:22]} Kg7 {[%emt 0:01:29]} 44. Nh5+ {[%emt 0:06:01]}
Kh6 {[%emt 0:00:41] ...d3 is the strong threat.} 45. Nf4 {[%emt 0:01:45]} Qg8+
{[%emt 0:15:14]} 46. Kh2 {[%emt 0:01:41]} Kg7 {[%emt 0:00:00] Strongly
threatening ...Kh8.} (46... Qg5 $2 47. Qh3+ Kg7 48. Ne6+ Kf6 49. Nxg5 $18) 47.
Nh5+ {[%emt 0:02:41]} Kh6 {[%emt 0:00:42]} 48. Nf4 {[%emt 0:00:00]} Kg7 {
[%emt 0:00:04]} (48... Qg5 49. Qh3+ Kg7 50. Ne6+ Kf6 51. Nxg5) 49. Nh5+ {
[%emt 0:00:08]} Kh8 {[%emt 0:00:48] aiming for ...Qg6.} 50. Qf6+ {[%emt 0:02:
19]} Kh7 {[%emt 0:00:01]} 51. Qh4 {[%emt 0:02:34] Nf6+ would kill now.} Kg6 {
[%emt 0:01:21]} 52. f4 {[%emt 0:01:16]} Qf8 $2 {[%emt 0:01:49] [#]} (52... Rd6
$11 53. f5+ Kxf5 54. Qf4+ Ke6 55. Qe4+ Kd7 56. Qb7+ Ke6 57. Qe4+ Kf7) 53. Qg5+
{[%emt 0:00:53]} Kf7 {[%emt 0:00:39]} 54. Qf6+ {[%emt 0:00:00]} Kg8 {[%emt 0:
00:12]} 55. Qg6+ {[%emt 0:01:08]} Kh8 {[%emt 0:00:01]} 56. Nf6 {[%emt 0:00:45]
[%csl Gf6][%cal Rg6h7]} Rd7 {[%emt 0:01:01]} 57. Qh5+ {[%emt 0:00:14]} Kg7 {
[%emt 0:00:10]} 58. Qg5+ {[%emt 0:00:10]} Kf7 {[%emt 0:00:00]} 59. Nxd7 {
[%emt 0:00:06] Never resign too early! Weighted Error Value: White=0.16 (very
precise) /Black=0.36} 1-0

[Event "44th Chess Olympiad Open 2022"]
[Site "Chennai"]
[Date "2022.07.30"]
[Round "2.36"]
[White "Pelletier, Yannick"]
[Black "Al-Aqrabi, Saleh"]
[Result "1-0"]
[WhiteElo "2551"]
[BlackElo "2172"]
[Annotator "ChessBase"]
[PlyCount "75"]
[EventDate "2022.??.??"]
[TimeControl "60"]

1. Nf3 {[%emt 0:00:04]} d5 {[%emt 0:00:08]} 2. d4 {[%emt 0:00:18]} c6 {[%emt 0:
00:00]} 3. Bf4 {[%emt 0:00:32]} Bf5 {[%emt 0:00:04]} 4. e3 {[%emt 0:04:27]} e6
{[%emt 0:00:12]} 5. c4 {[%emt 0:00:08]} Qb6 {[%emt 0:01:13]} 6. Qc1 {[%emt 0:
00:00]} h6 {[%emt 0:01:03]} 7. Nc3 {[%emt 0:02:21]} Nd7 {[%emt 0:00:09]} 8. c5
{[%emt 0:03:12]} Qd8 {[%emt 0:00:15]} 9. b4 {[%emt 0:01:19]} Ngf6 {[%emt 0:00:
00]} 10. h3 {[%emt 0:00:53]} Be7 {[%emt 0:00:07]} 11. Nd2 {[%emt 0:10:19]} O-O
{[%emt 0:03:40]} 12. Be2 {[%emt 0:00:08]} Re8 {[%emt 0:00:10]} 13. g4 {[%emt 0:
00:00]} Bg6 {[%emt 0:01:23]} 14. Bg3 {[%emt 0:00:05]} Qc8 {[%emt 0:07:35]} 15.
h4 {[%emt 0:04:07]} Ne4 {[%emt 0:14:30]} 16. Ncxe4 {[%emt 0:09:25]} dxe4 {
[%emt 0:06:13]} 17. Nc4 {[%emt 0:00:10]} b5 {[%emt 0:04:34]} 18. Nd6 {[%emt 0:
00:00]} Bxd6 {[%emt 0:00:02]} 19. Bxd6 {[%emt 0:00:09]} Qd8 {[%emt 0:09:38]}
20. a4 {[%emt 0:03:13]} a6 {[%emt 0:00:12]} 21. Qb2 {[%emt 0:06:47]} Nf6 {
[%emt 0:00:36]} 22. h5 {[%emt 0:01:34]} Bh7 {[%emt 0:00:13]} 23. Kd2 {[%emt 0:
00:00]} Nd5 {[%emt 0:06:56]} 24. axb5 {[%emt 0:09:38]} axb5 {[%emt 0:00:03]}
25. Rxa8 {[%emt 0:00:08]} Qxa8 {[%emt 0:00:44]} 26. Ra1 {[%emt 0:00:02]} Qc8 {
[%emt 0:01:34]} 27. Ra7 {[%emt 0:01:21]} f6 {[%emt 0:00:43]} 28. Qa3 {[%emt 0:
00:00]} Kh8 {[%emt 0:00:18]} 29. Qa5 {[%emt 0:00:52]} Bg8 {[%emt 0:04:43]} 30.
f3 {[%emt 0:03:31]} Bh7 {[%emt 0:17:58]} 31. f4 {[%emt 0:07:27]} Qd8 {[%emt 0:
00:00]} 32. Rb7 {[%emt 0:02:08]} Qa8 {[%emt 0:03:10]} 33. Rd7 {[%emt 0:02:16]}
Bg8 {[%emt 0:00:13]} 34. Bd1 {[%emt 0:00:39]} Qc8 {[%emt 0:09:41]} 35. Qa7 {
[%emt 0:00:33]} Nxb4 {[%emt 0:00:30]} 36. Rxg7 {[%emt 0:00:27]} Qa8 {[%emt 0:
00:00]} 37. g5 {[%emt 0:00:53]} hxg5 {[%emt 0:03:42]} 38. fxg5 {[%emt 0:00:08]}
1-0

[Event "44th Chess Olympiad Open 2022"]
[Site "Chennai"]
[Date "2022.07.30"]
[Round "2.36"]
[White "Baenziger, Fabian"]
[Black "Al-Subaihi, Khalil"]
[Result "1-0"]
[WhiteElo "2451"]
[BlackElo "2141"]
[Annotator "TA"]
[PlyCount "45"]
[EventDate "2022.??.??"]
[TimeControl "60"]

{[%evp 15,45,47,49,54,44,52,122,118,123,109,153,132,160,158,158,153,201,198,
188,186,201,194,278,169,160,118,108,113,423,417,402,388]} 1. d4 {[%emt 0:00:05]
} Nf6 {[%emt 0:00:09]} 2. c4 {[%emt 0:00:23]} e6 {[%emt 0:00:08]} 3. Nf3 {
[%emt 0:00:23]} d5 {[%emt 0:00:06]} 4. g3 {[%emt 0:00:35]} c5 {[%emt 0:01:40]}
5. cxd5 {[%emt 0:00:27]} exd5 {[%emt 0:00:10]} 6. Bg2 {[%emt 0:00:14]} h6 {
[%emt 0:00:37]} 7. O-O {[%emt 0:00:38]} Nc6 {[%emt 0:00:24]} 8. Nc3 {[%emt 0:
00:00]} Be7 {[%emt 0:06:51]} 9. dxc5 {[%emt 0:03:30] D34: Tarrasch Defence: 6
g3 Nf6 7 Bg2 Be7.} Bxc5 {[%emt 0:00:20]} 10. a3 {[%emt 0:00:08] [#]} d4 $146 {
[%emt 0:17:34]} (10... a6 $14) ({Predecessor:} 10... a5 11. b3 O-O 12. Bb2 Bf5
13. Rc1 Be7 14. Nd4 Bg6 15. Nxd5 Nxd5 16. Rxc6 bxc6 17. Nxc6 {1-0 (51) Peng,L 
(2517)-Ingvason,J (2172) Reykjavik 2022}) 11. Na4 $16 {[%emt 0:04:37] White is
better.} Be7 {[%emt 0:04:28]} 12. b4 {[%emt 0:00:17]} d3 {[%emt 0:23:12]} 13.
exd3 {[%emt 0:07:50]} Bf5 {[%emt 0:02:49]} 14. Re1 {[%emt 0:03:24] aiming for
b5.} O-O {[%emt 0:00:35]} 15. Bb2 {[%emt 0:06:55]} Bxd3 {[%emt 0:20:58] [#]} (
15... Rc8 $16 16. b5 Na5) 16. Nd4 $1 $18 {[%emt 0:03:05]} Nxd4 {[%emt 0:08:58]}
17. Qxd3 {[%emt 0:00:10]} Ne6 {[%emt 0:00:32]} 18. Qb3 {[%emt 0:08:03]} b5 {
[%emt 0:01:53]} (18... Rc8 $142 19. Bxb7 Rc7) 19. Nc3 {[%emt 0:07:32] Strongly
threatening Rxe6.} Rb8 {[%emt 0:04:37]} 20. Nd5 {[%emt 0:06:06] Inhibits Qb6.
White is more active.} Nxd5 {[%emt 0:01:23]} 21. Bxd5 {[%emt 0:00:06] This
bishop pair is nice.} Nc7 {[%emt 0:02:59] [#]} (21... Bf6 $16 {is a better
chance.}) 22. Rad1 {[%emt 0:00:34]} ({Wrong is} 22. Qc3 $2 Bf6 23. Bxf7+ Rxf7
$19) 22... Nxd5 {[%emt 0:00:35]} 23. Rxd5 {[%emt 0:00:08] Weighted Error Value:
White=0.10 (very precise) /Black=0.63} 1-0

[Event "44th Chess Olympiad Open 2022"]
[Site "Chennai"]
[Date "2022.07.30"]
[Round "2.36"]
[White "Al-Zendani, Zendan"]
[Black "Georgiadis, Nico"]
[Result "0-1"]
[WhiteElo "2284"]
[BlackElo "2578"]
[Annotator "TA"]
[PlyCount "81"]
[EventDate "2022.??.??"]
[TimeControl "60"]

{[%evp 9,81,6,2,-18,-10,-16,0,0,15,0,0,-7,8,0,18,-22,-20,-24,-21,-25,-12,-36,
-9,-18,-11,-12,0,-7,-7,-33,0,0,6,-9,0,0,0,0,0,0,-6,-79,-79,-79,-83,-94,-96,-99,
-99,-293,-269,-306,-306,-304,-311,-311,-311,-289,-304,-310,-310,-347,-214,-223,
-224,-225,-225,-204,-160,-445,-436,-398,-376,-946]} 1. c4 {[%emt 0:00:47]} e5 {
[%emt 0:00:29]} 2. Nc3 {[%emt 0:00:07]} Nf6 {[%emt 0:00:39]} 3. Nf3 {[%emt 0:
00:00]} Nc6 {[%emt 0:00:18]} 4. e4 {[%emt 0:08:51]} Bb4 {[%emt 0:01:52]} 5. d3
{[%emt 0:02:28]} d6 {[%emt 0:03:31]} 6. h3 {[%emt 0:01:16] A28: English
Opening: Four Knights Variation.} O-O {[%emt 0:02:35]} 7. Be2 {[%emt 0:01:04]}
Ne7 {[%emt 0:16:47]} 8. O-O {[%emt 0:09:07] The position is equal.} c6 {
[%emt 0:00:00] [#]} 9. Bg5 $146 {[%emt 0:03:15]} ({Predecessor:} 9. a3 Bxc3 10.
bxc3 Ng6 11. Re1 Re8 12. Bf1 Bd7 13. Qb3 Qc8 14. Rb1 b6 15. Kh2 {½-½ (49)
Vallejo Pons,F (2629)-Kasparov,G (2838) Linares 2002}) 9... Ng6 {[%emt 0:00:00]
} 10. Nh4 {[%emt 0:06:27]} Nxh4 {[%emt 0:14:12]} 11. Bxh4 {[%emt 0:00:11]} h6 {
[%emt 0:00:18]} 12. Bxf6 {[%emt 0:11:24]} Qxf6 {[%emt 0:00:09]} 13. Bg4 {
[%emt 0:00:17]} Be6 {[%emt 0:08:53]} 14. Rb1 {[%emt 0:14:45]} Qe7 {[%emt 0:00:
00]} 15. Qf3 {[%emt 0:04:30]} g6 {[%emt 0:04:34]} 16. Qg3 {[%emt 0:01:42]} Kh7
{[%emt 0:04:13]} 17. Bxe6 {[%emt 0:03:49]} fxe6 {[%emt 0:01:31]} 18. a3 {
[%emt 0:00:48]} Bc5 {[%emt 0:03:31]} 19. b4 {[%emt 0:00:27][%cal Yb2b4,Yb4a5]}
Bd4 {[%emt 0:04:01]} 20. Ne2 {[%emt 0:00:58]} Bb6 {[%emt 0:00:27]} 21. Kh1 {
[%emt 0:04:46]} a5 {[%emt 0:04:51]} 22. bxa5 {[%emt 0:01:25]} Bc5 {[%emt 0:01:
30]} 23. f4 {[%emt 0:02:56]} exf4 {[%emt 0:06:34]} 24. Rxf4 {[%emt 0:00:55]} e5
{[%emt 0:01:34] Against d4} 25. Rff1 {[%emt 0:03:37]} (25. Rxf8 $11 Rxf8 26.
Ng1) 25... Rxf1+ $17 {[%emt 0:00:24]} (25... Bxa3 $2 26. Rxf8 Rxf8 27. d4 $18)
26. Rxf1 {[%emt 0:00:07]} Rxa5 {[%emt 0:00:24]} 27. Qg4 {[%emt 0:01:37]} Rxa3 {
[%emt 0:03:50]} 28. Qc8 {[%emt 0:04:36] Prevents Ra8.} Kg7 {[%emt 0:01:31]
Inhibits Rf8.} ({Much weaker is} 28... Rxd3 $6 29. Rf8 h5 30. Rh8+ Kg7 31. Qg8+
Kf6 32. Rh7 Qxh7 33. Qxh7 $11) 29. d4 $2 {[%emt 0:01:38] [#] Loses the game.} (
29. Rb1 $17 {keeps fighting.} Ra7 30. Kh2) 29... Bxd4 $19 {[%emt 0:00:08]} ({
Not} 29... exd4 30. Nf4 Kh7 31. Ne6 $11) 30. Nxd4 {[%emt 0:00:00]} exd4 {
[%emt 0:00:05] Endgame KQR-KQR} 31. Rb1 {[%emt 0:00:00]} Ra7 {[%emt 0:00:47]}
32. Qb8 {[%emt 0:01:01]} b6 {[%emt 0:01:03]} ({Resist} 32... Qxe4 33. Rf1 Qe7
34. Qxa7 $18) 33. Qxb6 {[%emt 0:00:22]} c5 {[%emt 0:00:00]} 34. Qb8 {[%emt 0:
02:05]} Rd7 {[%emt 0:00:26]} 35. Qa8 {[%emt 0:01:36]} Qf7 {[%emt 0:00:54]} 36.
Qc6 {[%emt 0:01:12]} h5 {[%emt 0:02:04]} 37. Kg1 {[%emt 0:01:20]} Qe7 {[%emt 0:
00:58]} 38. Rb6 {[%emt 0:01:14]} Ra7 {[%emt 0:00:00] [#] ( -> ...Ra1+)} 39. Rb1
{[%emt 0:01:16] Prevents Ra1.} (39. Qxd6 $17 {only move.} Qxd6 40. Rxd6) 39...
Qe5 {[%emt 0:00:20]} 40. Rf1 {[%emt 0:02:25]} d3 {[%emt 0:02:32]} 41. Rd1 $2 {
[%emt 0:32:16] Weighted Error Value: White=0.29 (precise) /Black=0.08 
(flawless)} (41. Qd5 Qxd5 42. exd5) 0-1

[Event "44th Chess Olympiad Open 2022"]
[Site "Chennai"]
[Date "2022.07.30"]
[Round "2.36"]
[White "Al Harazy, Khalid"]
[Black "Kurmann, Oliver"]
[Result "1-0"]
[WhiteElo "2149"]
[BlackElo "2463"]
[Annotator "TA"]
[PlyCount "53"]
[EventDate "2022.??.??"]
[TimeControl "60"]

{[%evp 21,53,51,44,0,0,0,3,0,23,0,41,0,85,14,23,31,206,105,102,32,31,31,242,
247,898,894,879,875,881,874,29997,4986,29998,29999]} 1. e4 {[%emt 0:00:07]
[%cal Ye2e4,Ye4e5]} c5 {[%emt 0:00:10]} 2. Nf3 {[%emt 0:00:17]} Nc6 {[%emt 0:
00:09]} 3. c3 {[%emt 0:00:15]} Nf6 {[%emt 0:00:40]} 4. e5 {[%emt 0:00:00]} Nd5
{[%emt 0:00:10]} 5. d4 {[%emt 0:00:16]} cxd4 {[%emt 0:00:14]} 6. cxd4 {[%emt 0:
00:02]} d6 {[%emt 0:01:19]} 7. exd6 {[%emt 0:00:46]} e6 {[%emt 0:00:00]} 8. Nc3
{[%emt 0:00:59]} Qxd6 {[%emt 0:12:13]} 9. Bc4 {[%emt 0:04:33]} Nxc3 {[%emt 0:
00:49]} 10. bxc3 {[%emt 0:00:20]} Be7 {[%emt 0:00:10]} 11. O-O {[%emt 0:00:10]}
O-O {[%emt 0:00:15]} 12. a4 {[%emt 0:00:17] B22: Sicilian: 2 c3.} b6 {[%emt 0:
01:06]} 13. Re1 {[%emt 0:13:50]} Bb7 {[%emt 0:00:35]} 14. Bd3 {[%emt 0:08:27] 
[#] The position is equal.} Rad8 $146 {[%emt 0:18:28]} ({Predecessor:} 14...
Rac8 15. Ba3 Qd8 16. Bxe7 Qxe7 17. d5 Na5 18. dxe6 fxe6 19. Nd4 e5 20. Qh5 h6
21. Rxe5 {1-0 (33) Preotu,R (2487)-Suvorov,A (2313) Chess. com INT 2020}) 15.
Qe2 {[%emt 0:02:35]} Qd5 {[%emt 0:04:58] Against Ng5} 16. Be4 {[%emt 0:01:24]}
(16. Rb1 $5 {[%cal Rb1b5]}) 16... Qa5 {[%emt 0:03:12]} (16... Qd7 $11) 17. Qb5
{[%emt 0:05:20]} (17. Bd2 $16) 17... Rc8 $1 $11 {[%emt 0:02:36]} 18. Bd2 {
[%emt 0:06:16]} Qa6 $2 {[%emt 0:17:40] [#]} ({Better is} 18... Bf6 $14) 19. Qh5
{[%emt 0:12:28]} (19. Qb1 $1 $18) 19... f5 $16 {[%emt 0:10:19]} 20. Bxc6 {
[%emt 0:03:06] White is more active.} ({White should play} 20. Bb1 $16 Nd8 21.
Ne5) 20... Rxc6 $14 {[%emt 0:00:01]} 21. d5 {[%emt 0:00:00][%cal Yd4d5,Yd5e6,
Ye6e7]} Rd6 {[%emt 0:00:37] [#]} (21... Rcc8 $1 $14) 22. Bg5 $1 $40 {[%emt 0:
06:12] White is out for blood.} Bxg5 {[%emt 0:04:30]} (22... g6 $2 23. Qh4 Bxg5
24. Nxg5 $18) (22... Bf6) 23. Nxg5 {[%emt 0:00:13][%csl Gg5][%cal Rh5h7]} h6 {
[%emt 0:00:02] [#]} 24. dxe6 $1 {[%emt 0:01:02][%cal Yh5f7] White wants to
mate with Qf7+!} Bc6 {[%emt 0:07:01]} 25. e7 {[%emt 0:01:17]} Re8 {[%emt 0:00:
06]} 26. Qf7+ {[%emt 0:00:03]} Kh8 {[%emt 0:00:01]} 27. Qf8+ {[%emt 0:00:03]
Weighted Error Value: White=0.29 (precise) /Black=0.83} 1-0

[Event "44th Chess Olympiad Open 2022"]
[Site "Chennai"]
[Date "2022.07.30"]
[Round "2.37"]
[White "Cruz, Cristhian"]
[Black "Cu Hor, Winston Darwin"]
[Result "1-0"]
[WhiteElo "2579"]
[BlackElo "2328"]
[Annotator "TA"]
[PlyCount "87"]
[EventDate "2022.??.??"]
[TimeControl "60"]

{[%evp 23,87,17,18,6,14,5,27,4,27,18,19,0,0,0,0,0,41,0,21,24,44,44,40,39,41,52,
41,0,0,0,0,0,-4,0,69,77,86,81,122,4,7,7,4,0,0,0,3,18,81,75,120,133,135,141,242,
243,262,258,789,782,5306,5306,5306,5306,5262,4762]} 1. d4 {[%emt 0:00:03]} Nf6
{[%emt 0:01:05]} 2. c4 {[%emt 0:00:07]} g6 {[%emt 0:00:06]} 3. Nc3 {[%emt 0:00:
00]} d5 {[%emt 0:00:05]} 4. Nf3 {[%emt 0:00:30]} Bg7 {[%emt 0:01:42]} 5. Bg5 {
[%emt 0:00:11]} Ne4 {[%emt 0:06:16]} 6. Bf4 {[%emt 0:00:17]} Nxc3 {[%emt 0:00:
00]} 7. bxc3 {[%emt 0:00:06]} O-O {[%emt 0:00:42]} 8. e3 {[%emt 0:00:45]} c5 {
[%emt 0:02:07]} 9. cxd5 {[%emt 0:00:17]} cxd4 {[%emt 0:02:42]} 10. cxd4 {
[%emt 0:00:07]} Qxd5 {[%emt 0:00:14]} 11. Be2 {[%emt 0:00:13]} Nc6 {[%emt 0:00:
00] 11...Qa5+ deserves study.} 12. O-O {[%emt 0:00:28]} Bf5 {[%emt 0:01:03]}
13. h4 $5 {[%emt 0:00:50][%cal Yh2h4,Yh4h5] [#] An interesting side line. D80:
Grünfeld: Unusual White 4th moves and 4 Bg5.} Rad8 $146 {[%emt 0:00:00]} ({
Predecessor:} 13... Rfc8 14. h5 Nb4 15. h6 Bf6 16. Qa4 a5 17. a3 Bd7 18. Qd1
Nc2 19. Rb1 b5 20. Qd3 Qa2 {0-1 (92) Hakobyan,A (2612)-Fedoseev,V (2701) Chess.
com INT 2022}) 14. h5 {[%emt 0:04:24]} Be4 {[%emt 0:21:27]} 15. h6 {[%emt 0:30:
38] White has an edge.} Bh8 {[%emt 0:06:43]} 16. Qa4 {[%emt 0:00:00]} Qf5 {
[%emt 0:17:56]} 17. Bg3 {[%emt 0:25:00]} Qh5 $1 {[%emt 0:00:31]} 18. Rac1 {
[%emt 0:04:06][%cal Yf3d2]} Qxh6 {[%emt 0:04:09]} 19. Rc5 {[%emt 0:00:16]} Bf6
{[%emt 0:03:56]} 20. Rfc1 {[%emt 0:01:22] White has compensation.} Rd5 {
[%emt 0:02:42]} 21. Bf4 {[%emt 0:03:29]} g5 {[%emt 0:04:51]} 22. Bg3 {[%emt 0:
00:18]} Rfd8 {[%emt 0:01:13]} 23. Nd2 {[%emt 0:01:38]} Rxc5 {[%emt 0:01:17]}
24. Rxc5 {[%emt 0:00:06]} Bd5 {[%emt 0:00:11]} 25. Bc4 {[%emt 0:01:00]} Bxc4 {
[%emt 0:00:32]} 26. Qxc4 {[%emt 0:00:04]} Qh5 {[%emt 0:00:00]} 27. Nf3 {
[%emt 0:00:49]} e6 {[%emt 0:03:07]} 28. Qb5 {[%emt 0:01:47]} Be7 {[%emt 0:04:
47]} ({Black should play} 28... Rd7 $1 $11) 29. Rc1 $1 $14 {[%emt 0:00:41]} Rd7
{[%emt 0:00:12]} 30. Ne5 $36 {[%emt 0:00:17] Black is under strong pressure.}
a6 {[%emt 0:01:12]} 31. Qa4 {[%emt 0:01:34]} (31. Qb6 $1 $16 Nxe5 32. Bxe5)
31... Nxe5 $11 {[%emt 0:01:07]} 32. Bxe5 {[%emt 0:00:04]} Rd8 {[%emt 0:00:18]}
33. Qa5 {[%emt 0:00:59]} f6 {[%emt 0:00:00]} 34. Bg3 {[%emt 0:00:16]} Qe8 {
[%emt 0:00:35]} 35. Qb6 {[%emt 0:00:15][%csl Yb7,Ye6]} Kf7 {[%emt 0:00:31]} (
35... Ba3 $11 {keeps the balance.} 36. Rc7 Rc8) 36. Qxb7 {[%emt 0:00:35] White
is more active.} Qa4 {[%emt 0:00:20]} 37. Qe4 $1 {[%emt 0:00:42]} f5 {[%emt 0:
00:29]} 38. Qf3 {[%emt 0:00:07]} g4 {[%emt 0:00:36] [#]} (38... Kg6 $16) 39.
Qf4 $1 $18 {[%emt 0:00:46] aiming for Qh6.} Kg6 {[%emt 0:00:39] [#] Prevents
Qh6+. Threatens to win with ...Bd6.} 40. Qe5 {[%emt 0:00:54]} Qxa2 {[%emt 0:00:
00]} (40... Kf7) 41. e4 {[%emt 0:09:12][%cal Yd4d5] Hoping for d5! White is
clearly winning.} ({And not} 41. Rc7 Bf6 42. Qc5 h5 $15) 41... Kf7 {[%emt 0:07:
42]} 42. d5 {[%emt 0:04:46]} fxe4 {[%emt 0:03:59]} 43. Qxe6+ {[%emt 0:00:00]}
Kf8 {[%emt 0:00:51]} 44. Qh6+ {[%emt 0:00:00] Weighted Error Value: White=0.13
(very precise) /Black=0.20 (precise)} ({Not} 44. Rc7 Qa1+ 45. Kh2 Qf6 $18) 1-0